Cogmind - Beta 16 --- EXPLORER MODE // 2025.11.12 @ 16:26:00 Player: K.K.Y. Result: Destroyed by HV-2G4(R) with Subdweller Machine Gun Performance ------------- Evolutions (0) 0 Regions Visited (2) 400 Robots Destroyed (21) 105 Value Destroyed (354) 354 Prototype IDs (0) 0 Alien Tech Used (0) 0 Bonus (0) 0 TOTAL SCORE: 859 Bonus ------- None Cogmind --------- Core Integrity 0/250 Matter 300/300 Energy 100/100 System Corruption 0% Temperature Cool (0) Movement Core (1500) Ox29 Location -10/Subcaves Parts ------- > --- POWER (1) -------- (None) > --- PROPULSION (2) --- (None) > --- UTILITY (3) ------ Medium Storage Unit Huge Storage Unit Transport Network Coupler > --- WEAPON (2) ------- (None) > --- INVENTORY (25) --- Subdweller Power Source Subdweller Power Source Hover Unit Structural Scanner Machine Analyzer Subdweller Optics Subdweller Optics Scrap Shield Recalibrator Heavy Riot Gun Medium Laser Small Laser Subdweller Laser Light Assault Rifle Subdweller Machine Gun Grenade Launcher Mining Laser Makeshift Hammer Peak State ------------ > --- POWER ------------ Ion Engine > --- PROPULSION ------- Armored Wheel Armored Wheel > --- UTILITY ---------- Medium Storage Unit Huge Storage Unit Transport Network Coupler > --- WEAPON ----------- Battle Cannon Ripper > --- INVENTORY -------- Subdweller Power Source Hover Unit Structural Scanner Machine Analyzer Subdweller Optics Scrap Shield Recalibrator Medium Laser Small Laser Subdweller Laser Light Assault Rifle Subdweller Machine Gun Grenade Launcher Mining Laser Makeshift Hammer [Rating: 17] Favorites ----------- Power Ion Engine Engine Ion Engine Propulsion Armored Wheel Leg Aluminum Leg Wheel Armored Wheel Utility Medium Storage Unit Storage Medium Storage Unit Processor Transport Network Coupler Protection Light Armor Plating Weapon Medium Laser Energy Gun Medium Laser Ballistic Cannon Battle Cannon Slashing Weapon Ripper Build | -11 -10 -10 ------- Run | Yrd Mat Sub Slots Evolved 1 | . 1 . Power . | . . . Propulsion . | . . . Utility 1 | . 1 . Weapon . | . . . Parts Attached 13 | 8 2 3 Power 1 | 1 . . Engine 1 | 1 . . Core . | . . . Reactor . | . . . Propulsion 4 | 2 2 . Treads . | . . . Leg 2 | 2 . . Wheel 2 | . 2 . Hover . | . . . Flight . | . . . Utility 4 | 3 . 1 Device . | . . . Storage 2 | 1 . 1 Processor 1 | 1 . . Hackware . | . . . Protection 1 | 1 . . Artifact . | . . . Weapon 4 | 2 . 2 Energy Gun 2 | 2 . . Energy Cannon . | . . . Ballistic Gun . | . . . Ballistic Cannon 1 | . . 1 Launcher . | . . . Special Weapon . | . . . Impact Weapon . | . . . Slashing Weapon 1 | . . 1 Piercing Weapon . | . . . Special Melee Weapon . | . . . Unidentified Prototypes . | . . . Parts Lost 5 | . . 5 Power 1 | . . 1 Propulsion 2 | . . 2 Utility . | . . . Weapon 2 | . . 2 Highest Loss Streak 3 | . . 3 To Critical Strikes . | . . . Average Backups 11 | 1 5 15 Power . | . . 1 Propulsion . | . . 1 Utility 4 | . 2 5 Weapon 5 | . 2 7 Tool/Special . | . . . Unused Backups 17 | . . 17 Power 2 | . . 2 Propulsion 1 | . . 1 Utility 7 | . . 7 Weapon 7 | . . 7 Tool/Special . | . . . Average Slot Usage (%) 92 | . 87 95 Engine 11 | . 12 11 Wheel 23 | . 24 22 Storage 19 | . 12 24 Processor 12 | . 12 12 Energy Gun 13 | . 25 6 Ballistic Cannon 4 | . . 7 Slashing Weapon 6 | . . 9 Peak Build Rating 17 | 7 10 17 Average Rating 12 | 3 9 14 On Entrance 5 | . 7 10 Avg Prop Armor Cover (%) . | . . . Naked Turns . | . . . Heaviest Build 101 | 18 18 101 Greatest Support 24 | 20 24 24 Greatest Overweight (x) 33 | . . 33 Average Overweight (x) 2 | . . 4 Largest Inventory Capacity 25 | 10 10 25 Average Capacity 18 | 7 10 24 Most Carried 19 | 5 9 19 Average Carried 11 | 1 5 16 Final Capacity 25 | 10 10 25 Final Carried 19 | 1 9 19 Class Distribution -------------------- 100% | Hacker-Mutant Dominant Class ---------------- Hacker-Mutant | -10/Materials Hacker-Mutant | -10/Subcaves Resources | -11 -10 -10 ----------- Run | Yrd Mat Sub Matter Collected 350 | 199 101 50 Remotely . | . . . Salvage Created 603 | . 413 190 Parts 43 | . 29 14 Haulers Intercepted 2 | . 2 . Recyclers Shooed . | . . . Parts Field Recycled . | . . . Retrieved Matter . | . . . Parts Self-Destructed . | . . . Prevented . | . . . Parts Restored . | . . . Kills | -11 -10 -10 ------- Run | Yrd Mat Sub Combat Hostiles Destroyed 14 | . 9 5 Melee 3 | . . 3 Guns 10 | . 9 1 Cannons 1 | . . 1 Classes Destroyed 8 | . 7 1 Worker 2 | . 2 . Builder 1 | . 1 . Hauler 2 | . 2 . Mechanic 1 | . 1 . Watcher 1 | . 1 . Swarmer 8 | . 8 . Grunt 1 | . 1 . Subdweller 5 | . . 5 Best Kill Streak 4 | . 4 1 Combat Bots Only 4 | . 4 1 Max Kills in Single Turn 1 | . 1 1 Gunslinging . | . . . Exploded . | . . . Melee 1 | . . 1 Uniques/NPCs Destroyed . | . . . Combat | -11 -10 -10 -------- Run | Yrd Mat Sub Hostile Shots Fired 118 | . 27 91 Missed 38 | . 7 31 Hits 80 | . 20 60 Projectile 80 | . 20 60 Critical Strikes 1 | . . 1 Damage Taken 992 | . 135 857 Core 260 | . 29 231 Absorbed by Shields . | . . . Ignored by Resistances 577 | . 93 484 Core Remaining (%) 100 | 100 . . Volleys Fired 49 | . 35 14 Largest 2 | . 2 2 Hottest 90 | . 90 90 Shots Fired 93 | . 69 24 Gun 89 | . 69 20 Cannon 4 | . . 4 Launcher . | . . . Special . | . . . Kinetic 4 | . . 4 Thermal 89 | . 69 20 Explosive . | . . . Electromagnetic . | . . . Robot Hit Streak 16 | . 9 16 Robot Miss Streak 2 | . 2 1 Penetration Max . | . . . Secondary Targets . | . . . Shots Hit Robots 79 | . 47 32 Core Hits 27 | . 21 6 Critical Kills . | . . . Critical Parts Destroyed . | . . . Critical Strikes 2 | . 2 . Burn 2 | . 2 . Melee Attacks 32 | . . 32 Impact . | . . . Slashing 32 | . . 32 Piercing . | . . . Sneak Attacks . | . . . Combat Hostiles . | . . . Follow-up Attacks . | . . . Damage Inflicted 1247 | . 581 666 Guns 758 | . 581 177 Cannons 59 | . . 59 Explosions . | . . . Melee 430 | . . 430 Ramming . | . . . Kinetic 59 | . . 59 Thermal 758 | . 581 177 Explosive . | . . . Electromagnetic . | . . . Impact . | . . . Slashing 430 | . . 430 Piercing . | . . . Highest Corruption . | . . . Average Corruption . | . . . Corruption Purged . | . . . Corruption Blocked . | . . . Overload Shots . | . . . Overflow Damage . | . . . Projectiles . | . . . Explosions . | . . . Melee . | . . . Knockbacks 1 | . . 1 Impact . | . . . Kinetic 1 | . . 1 Secondary . | . . . Self-Inflicted Damage . | . . . Shots . | . . . Rammed . | . . . Targets Rammed . | . . . Kicked . | . . . Crushed . | . . . Highest Temperature 160 | . 160 . Average Temperature 47 | . 47 . Received Heat Transfer 78 | . 12 66 Siege Activations . | . . . Martial Activations . | . . . Shielding Activations . | . . . Robots Disrupted . | . . . Combat Hostiles . | . . . Robots Corrupted . | . . . Combat Hostiles . | . . . Parts Fried . | . . . Impact Corruptions . | . . . Robots Melted . | . . . Combat Hostiles . | . . . Parts Melted 4 | . 4 . Heat Transferred 2216 | . 1745 471 Parts Sabotaged . | . . . Parts Stolen . | . . . Parts Stripped . | . . . Power Chain Reactions . | . . . Alert | -11 -10 -10 ------- Run | Yrd Mat Sub Maximum Alert Level . | . . . Low Security (%) 100 | 100 100 . Level 1 . | . . . Level 2 . | . . . Level 3 . | . . . Level 4 . | . . . Level 5 . | . . . High Security . | . . . Max Security . | . . . Peak Influence 107 | . 107 . Initial . | . . . Average 18 | . 19 . Influence Increases 276 | . 276 . Destroy 0b10 Robot/C 180 | . 180 . Destroy 0b10 Robot/NC 35 | . 35 . Destroy Leader 46 | . 46 . Lose Combat Pursuer 15 | . 15 . Influence Decreases 276 | . 276 . Time Decay 276 | . 276 . Squads Dispatched . | . . . Investigation . | . . . Extermination . | . . . Reinforcement . | . . . Assault . | . . . Garrison . | . . . Intercept . | . . . Searches Triggered . | . . . Construction Impeded . | . . . Haulers Reinforced . | . . . Active Scanning Responses . | . . . Cargo Convoy Interrupts . | . . . Stealth | -11 -10 -10 --------- Run | Yrd Mat Sub Distress Signals 1 | . 1 . Communications Jammed . | . . . Distress Signals . | . . . Times Spotted 22 | . 16 6 Peak Tracking Total 3 | . 3 2 Tactical Retreats 1 | . 1 . Traps | -11 -10 -10 ------- Run | Yrd Mat Sub Traps Triggered 4 | . 2 2 Indirectly . | . . . Trap Hack Attempts . | . . . Triggered . | . . . Disarmed . | . . . Reprogrammed . | . . . Reused . | . . . Traps Extracted . | . . . Installed 1 | . . 1 Triggered . | . . . Machines | -11 -10 -10 ---------- Run | Yrd Mat Sub Machines Disabled . | . . . Max in Single Turn . | . . . Machines Repaired . | . . . Machines Dismantled . | . . . Machines Sabotaged . | . . . Overloaded Fab Kills . | . . . Hacking | -11 -10 -10 --------- Run | Yrd Mat Sub Machines Accessed . | . . . Terminals . | . . . Fabricators . | . . . Repair Stations . | . . . Recycling Units . | . . . Scanalyzers . | . . . Garrison Access . | . . . Total Hacks . | . . . Successful . | . . . Failed . | . . . Catastrophic . | . . . Database Lockouts . | . . . Manual . | . . . Terminals . | . . . Fabricators . | . . . Repair Stations . | . . . Recycling Units . | . . . Scanalyzers . | . . . Garrison Access . | . . . Terminal Hacks . | . . . Fabricator Hacks . | . . . Repair Station Hacks . | . . . Recycling Unit Hacks . | . . . Scanalyzer . | . . . Garrison Access Hacks . | . . . Unauthorized Hacks . | . . . Terminals . | . . . Fabricators . | . . . Repair Stations . | . . . Recycling Units . | . . . Scanalyzers . | . . . Garrison Access . | . . . Data Cores Recovered . | . . . Used . | . . . Hacking Detections . | . . . Full Trace Events . | . . . Feedback Events . | . . . Feedback Blocked . | . . . Robot Schematics Acquired . | . . . Robots Built . | . . . Authchips . | . . . Time . | . . . Total Robot Build Rating . | . . . Part Schematics Acquired . | . . . Parts Built . | . . . Authchips . | . . . Time . | . . . Total Part Build Rating . | . . . Part Studies Acquired . | . . . Parts Repaired . | . . . Time . | . . . Parts Recycled . | . . . Recycled Matter . | . . . Retrieved Matter . | . . . Retrieved Components . | . . . Parts Scanalyzed . | . . . Part Schematics Acquired . | . . . Parts Damaged . | . . . Bothacking | -11 -10 -10 ------------ Run | Yrd Mat Sub Used RIF Installer . | . . . Robots Hacked . | . . . Non-combat . | . . . Combat . | . . . Robot Hacks Applied . | . . . Relay Couplers Released . | . . . Fabnet Peak Effective % . | . . . Robots Rewired . | . . . Allies Hacked . | . . . Hacks Repelled . | . . . Allies | -11 -10 -10 -------- Run | Yrd Mat Sub Total Allies . | . . . Largest Group . | . . . Highest-Rated Group . | . . . Highest-Rated Ally . | . . . Total Orders . | . . . Ally Attacks . | . . . Total Damage . | . . . Kills . | . . . Allies Corrupted . | . . . Allies Melted . | . . . Intel | -11 -10 -10 ------- Run | Yrd Mat Sub Active Infowar (turns) 2117 | 26 749 1342 T.N.C. 2117 | 26 749 1342 Robot Analysis Total . | . . . Derelict Logs Recovered 1 | . . 1 Drone Launches . | . . . Drone Recoveries . | . . . Exploration | -11 -10 -10 ------------- Run | Yrd Mat Sub Turns Passed 2140 | 49 749 1342 Spaces Moved 1405 | 40 617 748 Core 27 | 21 . 6 Treads . | . . . Legs 26 | 19 7 . Wheels 1352 | . 610 742 Hover . | . . . Flight . | . . . Fastest Speed 50 | 50 90 90 Average Speed 127 | 83 90 159 Slowest Speed 1700 | 120 120 1700 Overloaded Moves . | . . . Propulsion Burnouts . | . . . Robots Hopped . | . . . Potential Cave-ins . | . . . Cave-ins Triggered . | . . . Exploration Rate (%) 44 | 3 96 35 Regions Visited 2 Branch Regions 1 Pre-discovered Areas 1 | . . 1 Known Exits Taken 2 | 1 1 . Unknown Exits Taken . | . . . Scrap Searched 10 | . . 10 Spaces Dug 3 | . . 3 Terrain Destroyed 3 | . . 3 Melee 3 | . . 3 Projectile . | . . . AOE . | . . . Terrain Rammed . | . . . Walls Destroyed . | . . . Machines Disabled . | . . . Actions | -11 -10 -10 --------- Run | Yrd Mat Sub Total 1624 | 55 741 828 Wait 91 | . 74 17 Move 1403 | 39 616 748 Hop . | . . . Pick Up 28 | 7 10 11 Fast Attach 2 | 2 . . Attach 10 | 6 2 2 Detach 3 | . 2 1 Swap 1 | . . 1 Drop 4 | 1 2 1 Fire 49 | . 35 14 Melee 32 | . . 32 Ram . | . . . Kick . | . . . Crush . | . . . Escape Stasis . | . . . Rewire . | . . . Trap 1 | . . 1 Miscellaneous . | . . . Route ------- -11/Scrapyard -10/Materials (discovered 6 exits: *Mat x3 / *Min x2 / *Sub) -10/Subcaves (discovered 2 exits: *Mat x2) History --------- Turn | Location | Event 6 | -11/Scrapyard | Identified exit to Materials 6 | -11/Scrapyard | Discovered exit to Materials (range 15) 50 | -11/Scrapyard | Entered Materials 50 | -10/Materials | Evolved 1 slot: Utility x1 104 | -10/Materials | Identified exit to Mines 104 | -10/Materials | Discovered exit to Mines (range 7) 308 | -10/Materials | Identified exit to Materials 308 | -10/Materials | Discovered exit to Materials (range 5) 313 | -10/Materials | Build established: Hacker-Mutant 529 | -10/Materials | Discovered exit to Materials (range 10) 638 | -10/Materials | Discovered exit to Mines (range 6) 709 | -10/Materials | Discovered exit to Materials (range 7) 785 | -10/Materials | Identified exit to Subcaves 785 | -10/Materials | Discovered exit to Subcaves (range 6) 799 | -10/Materials | Entered Subcaves 800 | -10/Subcaves | Approached by a straggling Scientist 825 | -10/Subcaves | Disturbed a concealed Subdweller 1024 | -10/Subcaves | Shifting Twisted Machinery released Shrapnel Trap 1027 | -10/Subcaves | Learned location of Recycling (-7) 1048 | -10/Subcaves | Shifting Twisted Machinery released Battle Cannon 1048 | -10/Subcaves | Shifting Twisted Machinery released Mak. Hammer 1230 | -10/Subcaves | Shifting Twisted Machinery released Piercing Trap 1830 | -10/Subcaves | Identified exit to Materials 1830 | -10/Subcaves | Discovered exit to Materials (range 7) 2019 | -10/Subcaves | Discovered exit to Materials (range 8) 2076 | -10/Subcaves | Core integrity fell below 50% 2091 | -10/Subcaves | Lost 3 parts (1p2n) 2113 | -10/Subcaves | Core integrity fell below 20% 2141 | -10/Subcaves | Destroyed by HV-2G4(R) with Subdweller Machine Gun Last Messages --------------- here" 02019_ EXIT=FOUND: MATERIALS K7-2EL(c): "I think it's somewhere southeast of here" 02026_ Arm. Wheel destroyed. 02042_ Destroyed Scrap Shield. 02044_ 8G-VUF(R) destroyed. 02060_ Ion Engine destroyed. K7-2EL(c): "I think it's somewhere southeast of here" 02095_ Battle Cannon destroyed. 02099_ Subatomizers dissect the Sub. Power Source. 02105_ HV-2G4(R) affixes Scrap Shield Fragment to Scrap Shield. 02114_ Subatomizers dissect the Sub. Power Source. K7-2EL(c): "I think it's somewhere southeast of here" 02135_ Ripper destroyed. Map ----- +----------------------------------------------------+ | ?????????????????????????????????????????????????? | | ?????????????????????????????????????????????????? | | ?????????????????????????????????????????????????? | | ?????????????????????????????????????????????????? | | ?????????????????????????????????????????????????? | | ?????????????????????????????????????????????????? | | ?????????????????????????????????????????????????? | | ?????????????????????????????????????????????????? | | ?????????????????????????????????????????????????? | | ?????????????????????????????????????????????????? | | ?????????????????????????????????????????????????? | | ?????????????????????????????????????????????????? | | ?????????????????????????????????????????????????? | | ?????????????????????????????????????????????????? | | ?????????????????????????????????????????????????? | | ?????????????????????????????????????????????????? | | ?????????????????????????????????????????????????? | | ?????????????????????????????????????????????????? | | ?????????????????????????"""#????????????????????? | | ?????????????????????????""""????????????????????? | | ?????????????????????????#""#????????????????????? | | ?????????????????????????# ##???????????????????? | | ????????????????????????##"""#???????????????????? | | ???????????????????????## ""#????????????????????? | | ??????????????????????## ##???????????????????? | | ?????????????????????##R @ #???????????????????? | | ????????????????????## < #???????????????????? | | ????????????????????#!%c #???????????????????? | | ????????????????????# [ ####???????????????????? | | ????????????????????## ##??????????????????????? | | ?????????????????????## ###?????????????????????? | | ??????????????#?? ?## ##????????????????????? | | ??????????????# ## ###??????????????????? | | ??????????????# #??????????????????? | | ??????????????# #??????????????????? | | ??????????????## ## #### ##?????????????????? | | ???????????????# ####??# #?????????????????? | | ???????????????# ##???## ##?????????????????? | | ???????????????# #???# #?????????????????? | | ???????????????## ##?## #?????????????????? | | ????????????????# ### ##?????????????????? | | ????????????????# ## #??????????????????? | | ????????????????# ##?????????????????? | | ????????????????# #????????###??????? | | ??????????????### #???????## #??????? | | ??????????????# ##?#####?# ##?????? | | ???????????????# #####"""#?## "#?????? | | ???????????????# #####"""" #### "#?????? | | ???????????????## ##?##""""" """" "#?????? | | ????????????????# ##??# """"" ##????? | +----------------------------------------------------+ Best States ------------- Heat Dissipation 25 Energy Generation 10 Energy Capacity 250 Matter Stores 300 Matter Capacity 300 Sight Range 16 Terrain Scan Density 10 Resistance: KI 35 Resistance: TH 35 Resistance: EX 35 Resistance: EM 35 Resistance: I 35 Resistance: S 35 Resistance: P 35 Evasion (%) 55 Offensive Hacking 20 Item Schematics ----------------- None Robot Schematics ------------------ None Fabricated ------------ Nothing Repaired ---------- Nothing Studied --------- None Alien Tech Used ----------------- None Achievements -------------- None Challenges ------------ None Game ------ Seed StructuralTechRocket Manual? 0 Play Time 00:14:13 Cumulative 80.9 hours Start 2025.11.12 @ 16:14:18 End 2025.11.12 @ 16:26:00 Sessions 1 Manual Loads 0 Difficulty Explorer Special Mode None Game No. 76 Rogue 0 Adventurer 0 Explorer 76 Win Type - Total 0 Types 0/0/0/0/0/0/0/0/0/0 Lore% 52 Gallery% 55 Achievement% 42 Wizard Run 0 Options --------- Layout 1 ASCII 0 Keyboard 0 Movement Mouse Keybinds 0 Fullscreen 1 Font 24/Smallcaps Map View 50x35 Zoom Use 0% Tactical HUD 1 Map Filters NONE Filters NONE Steam 1 RUN: c010554b-7d95-4818-b971-102991c6452c